fUSD/lending_fUSD_20260221
["ID","MTS","AMOUNT","RATE_DAILY","PERIOD"]
[406257873,1771666239544,-15000.01483677,0.000162,5]
[406257874,1771666239554,-58870.33632134,0.00016235,2]
[406257875,1771666239563,-166.66,0.00016273,2]
[406257876,1771666239572,-500.0,0.00016296,2]
[406257877,1771666239582,-374.99944524,0.00016345,2]
[406257878,1771666239591,-32690.43260339,0.00016364,2]
[406257879,1771666239601,-2953.91,0.00016365,2]
[406257880,1771666239611,-342.8,0.00016368,2]
[406257881,1771666239624,-200.0,0.00016434,2]
[406257882,1771666239634,-227.92,0.00016438,2]
[406257883,1771666239644,-333.76,0.00016438,30]
[406257884,1771666239660,-374.99944524,0.00016505,2]
[406257885,1771666239669,-198.19743299,0.00016524,2]
[406257886,1771666239678,-1189.75318826,0.00016524,2]
[406257887,1771666239688,-491.97536777,0.00016524,2]
[406257888,1771666239697,-1979.76468955,0.00016529,2]
[406257889,1771666239707,-2385.82,0.00016544,2]
[406257890,1771666239716,-58870.33632134,0.00016568,2]
[406257892,1771666239725,-6263.04,0.00016586,2]
[406257894,1771666239735,-369.46,0.00016588,2]
[406257895,1771666239744,-736.0,0.000166,2]
[406257896,1771666239753,-166.66,0.00016609,2]
[406257897,1771666239763,-32690.43260339,0.00016612,2]
[406257898,1771666239772,-1000.0,0.00016699,2]
[406257899,1771666239782,-25000.0,0.00016709,2]
[406257900,1771666239792,-183.38,0.00016787,3]
[406257901,1771666239802,-200.0,0.00016792,2]
[406257902,1771666239812,-32690.43260339,0.0001686,2]
[406257904,1771666239822,-3240.0,0.00016881,2]
[406257905,1771666239831,-58870.33632134,0.00016901,2]
[406257906,1771666239840,-166.66,0.00016944,2]
[406257907,1771666239850,-2000.0,0.0001696,2]
[406257908,1771666239859,-2000.0,0.0001696,2]
[406257910,1771666239869,-2000.0,0.0001696,2]
[406257912,1771666239878,-2000.0,0.0001696,2]
[406257913,1771666239887,-2000.0,0.0001696,2]
[406257914,1771666239896,-282.12310318,0.00016961,2]
[406257915,1771666239906,-1422.0423242,0.00016973,2]
[406257916,1771666239915,-200.0,0.00016982,2]
[406257917,1771666239924,-198.19743299,0.00016982,2]
[406257918,1771666239934,-1979.76468955,0.00016986,2]
[406257919,1771666239944,-272.0,0.00016988,2]
[406257920,1771666239953,-2000.0,0.0001699,2]
[406257921,1771666239964,-300.0,0.00017,2]
[406257922,1771666239975,-446222.77180441,0.00017,2]
[406257923,1771666239984,-166.67,0.00017049,2]
[406257924,1771666239993,-1000.0,0.0001705,2]
[406257925,1771666240007,-6998.0566075,0.00017074,2]
[406257926,1771666240017,-342.8,0.00017084,2]
[406257927,1771666240026,-421.0,0.00017123,2]
[406257928,1771666240037,-578.20924308,0.00017128,2]
[406257929,1771666240046,-174.61919141,0.00017128,2]
[406257930,1771666240056,-500.0,0.00017128,2]
[406257931,1771666240070,-500.0,0.00017128,2]
[406257932,1771666240090,-500.0,0.00017128,2]
[406257933,1771666240101,-500.0,0.00017128,2]
[406257934,1771666240111,-500.0,0.00017128,2]
[406257935,1771666240120,-500.0,0.00017128,2]
[406257936,1771666240132,-250.0,0.00017128,2]
[406257937,1771666240144,-500.0,0.00017128,2]
[406257938,1771666240154,-254.8861323,0.00017128,2]
[406257939,1771666240164,-500.0,0.00017128,2]
[406257940,1771666240173,-500.0,0.00017128,2]
[406257941,1771666240183,-500.0,0.00017128,2]
[406257942,1771666240192,-500.0,0.00017128,2]
[406257943,1771666240202,-162.380719,0.00017128,2]
[406257944,1771666240211,-693.3919763,0.00017128,2]
[406257945,1771666240222,-277.35679052,0.00017128,2]
[406257946,1771666240231,-322.0,0.00017139,2]
[406257947,1771666240240,-350.0,0.00017154,2]
[406257948,1771666240249,-168.19,0.00017171,2]
[406257949,1771666240259,-900.0,0.00017176,2]
[406257950,1771666240272,-719.04747942,0.00017183,2]
[406257951,1771666240281,-2953.91,0.00017183,2]
[406257952,1771666240292,-1000.0,0.00017222,2]
[406257953,1771666240302,-58870.33632134,0.00017234,2]
[406257954,1771666240312,-745.65223616,0.00017238,2]
[406257955,1771666240325,-317.3005315,0.00017269,2]
[406257956,1771666240335,-166.66,0.0001728,2]
[406257958,1771666240344,-773.2413689,0.00017293,2]
[406257959,1771666240355,-4895.0,0.00017317,2]
[406257960,1771666240364,-1000.0,0.00017317,2]
[406257961,1771666240373,-1000.0,0.00017317,2]
[406257962,1771666240383,-1000.0,0.00017317,2]
[406257963,1771666240393,-1000.0,0.00017317,2]
[406257965,1771666240403,-370.0,0.0001733,2]
[406257966,1771666240413,-421.0,0.00017337,2]
[406257967,1771666240425,-801.85129955,0.00017348,2]
[406257968,1771666240434,-421.0,0.00017356,2]
[406257969,1771666240444,-600.0,0.00017362,2]
[406257970,1771666240454,-2088.19,0.00017364,2]
[406257971,1771666240463,-10809.54,0.00017364,2]
[406257972,1771666240473,-184.17,0.00017365,2]
[406257973,1771666240483,-831.51979763,0.00017403,2]
[406257974,1771666240492,-369.46,0.00017418,2]
[406257975,1771666240501,-1600.0,0.00017418,2]
[406257976,1771666240511,-150.0,0.00017425,2]
[406257977,1771666240520,-198.19743299,0.00017441,2]
[406257978,1771666240529,-1979.76468955,0.00017443,2]
[406257979,1771666240539,-862.28603014,0.00017458,2]
[406257980,1771666240548,-421.0,0.00017467,2]
[406257981,1771666240558,-361.739076,0.00017472,2]
[406257982,1771666240567,-2500.0,0.000175,6]
[406257983,1771666240576,-894.19061326,0.00017513,2]
[406257984,1771666240586,-421.0,0.00017528,2]
[406257985,1771666240595,-200.0,0.0001753,2]
[406257986,1771666240604,-58870.33632134,0.00017567,2]
[406257987,1771666240613,-927.27566595,0.00017568,2]
[406257988,1771666240625,-421.0,0.00017594,2]
[406257989,1771666240635,-2500.0,0.000176,6]
[406257990,1771666240646,-350.0,0.00017602,2]
[406257991,1771666240655,-166.66,0.00017615,2]
[406257992,1771666240664,-961.58486559,0.00017623,2]
[406257993,1771666240674,-421.0,0.00017639,2]
[406257994,1771666240684,-150.0,0.00017663,2]
[406257995,1771666240693,-181.08010149,0.00017676,2]
[406257996,1771666240702,-287.61899177,0.00017676,2]
[406257997,1771666240711,-600.0,0.00017676,2]
[406257998,1771666240721,-997.16350561,0.00017678,2]
[406257999,1771666240731,-184.17,0.00017682,2]
[406258000,1771666240741,-150.17950014,0.00017683,2]
[406258001,1771666240750,-2500.0,0.000177,6]
[406258002,1771666240759,-1000.0,0.00017734,2]
[406258003,1771666240768,-421.0,0.00017741,2]
[406258004,1771666240778,-1000.0,0.00017747,2]
[406258005,1771666240788,-150.0,0.00017749,2]
[406258006,1771666240798,-421.0,0.00017751,2]
[406258007,1771666240807,-150.0,0.00017752,2]
[406258008,1771666240816,-150.0,0.00017753,2]
[406258009,1771666240826,-1000.0,0.00017754,2]
[406258010,1771666240835,-1000.0,0.00017758,2]
[406258011,1771666240845,-500.0,0.00017789,2]
[406258012,1771666240855,-500.0,0.00017789,2]
[406258013,1771666240864,-500.0,0.00017789,2]
[406258014,1771666240873,-500.0,0.00017789,2]
[406258015,1771666240883,-500.0,0.00017789,2]
[406258016,1771666240893,-500.0,0.00017789,2]
[406258017,1771666240903,-500.0,0.00017789,2]
[406258018,1771666240913,-500.0,0.00017789,2]
[406258019,1771666240925,-540.78795508,0.00017789,2]
[406258020,1771666240936,-500.0,0.00017789,2]
[406258021,1771666240946,-500.0,0.00017789,2]
[406258022,1771666240955,-500.0,0.00017789,2]
[406258023,1771666240964,-500.0,0.00017789,2]
[406258024,1771666240973,-500.0,0.00017789,2]
[406258025,1771666240983,-500.0,0.00017789,2]
[406258026,1771666240999,-500.0,0.00017789,2]
[406258027,1771666241011,-500.0,0.00017789,2]
[406258028,1771666241020,-500.0,0.00017789,2]
[406258029,1771666241030,-500.0,0.00017789,2]
[406258030,1771666241039,-500.0,0.00017789,2]
[406258031,1771666241048,-500.0,0.00017789,2]
[406258032,1771666241059,-500.0,0.00017789,2]
[406258033,1771666241069,-547.48834676,0.00017789,2]
[406258034,1771666241078,-500.0,0.00017789,2]
[406258035,1771666241088,-616.19377918,0.00017789,2]
[406258036,1771666241098,-505.61228041,0.00017789,2]
[406258037,1771666241108,-500.0,0.00017789,2]
[406258038,1771666241119,-500.0,0.00017789,2]
[406258039,1771666241128,-500.0,0.00017789,2]
[406258040,1771666241138,-500.0,0.00017789,2]
[406258041,1771666241147,-500.0,0.00017789,2]
[406258042,1771666241157,-500.0,0.00017789,2]
[406258043,1771666241167,-500.0,0.00017789,2]
[406258044,1771666241177,-500.0,0.00017789,2]
[406258045,1771666241186,-500.0,0.00017789,2]
[406258046,1771666241196,-505.36393545,0.00017789,2]
[406258047,1771666241206,-500.0,0.00017789,2]
[406258048,1771666241218,-500.0,0.00017789,2]
[406258049,1771666241228,-500.0,0.00017789,2]
[406258050,1771666241238,-500.0,0.00017789,2]
[406258051,1771666241248,-500.0,0.00017789,2]
[406258052,1771666241259,-500.0,0.00017789,2]
[406258053,1771666241269,-500.0,0.00017789,2]
[406258054,1771666241279,-500.0,0.00017789,2]
[406258055,1771666241289,-500.0,0.00017789,2]
[406258056,1771666241302,-515.94559104,0.00017789,2]
[406258057,1771666241316,-500.0,0.00017789,2]
[406258058,1771666241327,-500.0,0.00017789,2]
[406258059,1771666241337,-274.81553287,0.00017789,2]
[406258060,1771666241347,-500.0,0.00017789,2]
[406258061,1771666241356,-504.39683652,0.00017789,2]
[406258062,1771666241366,-500.0,0.00017789,2]
[406258063,1771666241375,-500.0,0.00017789,2]
[406258064,1771666241388,-500.0,0.00017789,2]
[406258065,1771666241398,-500.0,0.00017789,2]
[406258066,1771666241408,-500.0,0.00017789,2]
[406258067,1771666241417,-500.0,0.00017789,2]
[406258068,1771666241427,-500.0,0.00017789,2]
[406258069,1771666241436,-500.0,0.00017789,2]
[406258070,1771666241445,-500.0,0.00017789,2]
[406258071,1771666241454,-500.0,0.00017789,2]
[406258072,1771666241464,-500.0,0.00017789,2]
[406258073,1771666241473,-500.0,0.00017789,2]
[406258074,1771666241484,-500.0,0.00017789,2]
[406258075,1771666241494,-500.0,0.00017789,2]
[406258076,1771666241504,-500.0,0.00017789,2]
[406258077,1771666241514,-150.0,0.0001779,2]
[406258078,1771666241524,-1000.0,0.0001779,2]
[406258079,1771666241534,-1000.0,0.00017796,2]
[406258080,1771666241544,-2500.0,0.000178,6]
[406258081,1771666241554,-1000.0,0.00017801,2]
[406258082,1771666241814,-1000.0,0.00017804,2]
[406258083,1771666241823,-800.0,0.00017808,2]
[406258084,1771666241833,-150.0,0.0001781,2]
[406258085,1771666241843,-1000.0,0.00017811,2]
[406258086,1771666241851,-152.36,0.00017818,2]
[406258087,1771666241861,-1000.0,0.00017828,2]
[406258088,1771666241871,-1000.0,0.00017835,2]
[406258089,1771666241880,-152.36,0.00017836,2]
[406258090,1771666241889,-1000.0,0.00017837,2]
[406258091,1771666241898,-150.0,0.00017849,2]
[406258092,1771666241907,-152.35193132,0.00017853,2]
[406258093,1771666241916,-200.0,0.00017856,2]
[406258094,1771666241925,-271.69301984,0.00017857,2]
[406258095,1771666241935,-1000.0,0.0001786,2]
[406258096,1771666241944,-1004.67257269,0.0001786,2]
[406258097,1771666241953,-1000.0,0.00017866,2]
[406258098,1771666241962,-1000.0,0.0001787,2]
[406258099,1771666241971,-1000.0,0.00017876,2]
[406258100,1771666241981,-4895.0,0.00017879,2]
[406258101,1771666241991,-150.0,0.00017891,2]
[406258102,1771666242000,-776.62150607,0.00017899,5]
[406258103,1771666242009,-3236.0,0.000179,6]
[406258104,1771666242019,-198.19743299,0.000179,2]
[406258105,1771666242029,-58870.33632134,0.000179,2]
[406258106,1771666242039,-1189.75318826,0.000179,2]
[406258107,1771666242048,-1979.76468955,0.000179,2]
[406258108,1771666242057,-491.97536777,0.000179,2]
[406258109,1771666242066,-42848.11122221,0.000179,2]
[406258110,1771666242075,-1000.0,0.00017906,2]
[406258111,1771666242085,-150.0,0.00017913,2]
[406258112,1771666242095,-160.0,0.00017918,2]
[406258113,1771666242107,-173.74378417,0.0001792,2]
[406258114,1771666242115,-150.0,0.00017934,2]
[406258115,1771666242127,-782.04703933,0.00017943,2]
[406258116,1771666242138,-1000.0,0.00017955,2]
[406258117,1771666242148,-1000.0,0.00017956,2]
[406258118,1771666242158,-421.0,0.00017958,2]
[406258119,1771666242167,-150.0,0.0001796,2]
[406258120,1771666242177,-1000.0,0.00017967,2]
[406258121,1771666242187,-2202.417,0.00017968,2]
[406258122,1771666242196,-216.683,0.00017968,2]
[406258123,1771666242205,-1000.0,0.0001797,2]
[406258124,1771666242214,-150.0,0.00017972,2]
[406258125,1771666242223,-162.93997784,0.00017973,2]
[406258126,1771666242232,-168.71198045,0.00017973,2]
[406258127,1771666242241,-166.88843163,0.00017973,2]
[406258128,1771666242251,-503.5027165,0.00017973,2]
[406258129,1771666242260,-246.364609,0.00017973,2]
[406258130,1771666242269,-501.05660533,0.00017973,2]
[406258131,1771666242279,-165.27434071,0.00017973,2]
[406258132,1771666242287,-500.41653761,0.00017973,2]
[406258133,1771666242297,-501.38512914,0.00017973,2]
[406258134,1771666242308,-454.60115488,0.00017973,2]
[406258135,1771666242321,-501.37835228,0.00017973,2]
[406258136,1771666242331,-184.37223932,0.00017973,2]
[406258137,1771666242341,-503.18537404,0.00017973,2]
[406258138,1771666242351,-500.0,0.00017973,2]
[406258139,1771666242361,-500.30226838,0.00017973,2]
[406258140,1771666242371,-500.0,0.00017973,2]
[406258141,1771666242381,-493.47361044,0.00017973,2]
[406258142,1771666242390,-500.49256887,0.00017973,2]
[406258143,1771666242403,-500.0,0.00017973,2]
[406258144,1771666242413,-590.39410538,0.00017973,2]
[406258145,1771666242422,-500.57029543,0.00017973,2]
[406258146,1771666242431,-500.0,0.00017973,2]
[406258147,1771666242440,-500.0,0.00017973,2]
[406258148,1771666242449,-500.0,0.00017973,2]
[406258149,1771666242459,-500.0,0.00017973,2]
[406258150,1771666242469,-500.0,0.00017973,2]
[406258151,1771666242481,-500.0,0.00017973,2]
[406258152,1771666242492,-167.41603795,0.00017973,2]
[406258153,1771666242502,-500.0,0.00017973,2]
[406258154,1771666242511,-170.25855027,0.00017973,2]
[406258156,1771666242520,-514.56546432,0.00017973,2]
[406258157,1771666242532,-453.19896023,0.00017973,2]
[406258158,1771666242542,-500.8784215,0.00017973,2]
[406258159,1771666242552,-421.0,0.00017976,2]
[406258160,1771666242562,-150.0,0.0001798,2]
[406258161,1771666242572,-166.67,0.00017987,2]
[406258162,1771666242582,-663.94723313,0.0001799,2]
[406258163,1771666242592,-663.94723313,0.0001799,2]
[406258164,1771666242602,-1000.0,0.00017991,2]
[406258165,1771666242613,-1000.0,0.00017998,2]
[406258166,1771666242622,-352.10495522,0.00017999,2]
[406258167,1771666242632,-666.0,0.00017999,2]
[406258168,1771666242641,-300.0,0.00017999,2]
[406258169,1771666242651,-666.0,0.00017999,2]
[406258170,1771666242661,-300.0,0.00017999,2]
[406258171,1771666242670,-150.0,0.00017999,2]
[406258172,1771666242680,-150.0,0.00017999,2]
[406258173,1771666242690,-179.98541448,0.00017999,2]
[406258174,1771666242699,-467441.65770297,0.00018,2]
[406258176,1771666242909,-502.36887877,0.00018,2]
[406258177,1771666242922,-1108.37061052,0.00018,2]
[406258178,1771666242961,-1023.555,0.00018,2]
[406258181,1771666244063,-1016.40056016,0.000179,2]
[406258182,1771666244072,-503.58870457,0.00017973,2]
[406258183,1771666244081,-501.02670572,0.00017973,2]
[406258184,1771666244090,-4634.98032064,0.00018,2]
[406258191,1771666245670,-13652.95264172,0.00018,2]
[406258192,1771666245725,-503.0,0.00018,2]
[406258198,1771666321586,-3164723.76419985,0.00018,2]
[406258199,1771666321596,-3973908.69704728,0.00018,2]
[406258200,1771666321605,-151.0,0.00018,2]
[406258201,1771666321614,-153.075707,0.00018,2]
[406258202,1771666321624,-151.0,0.00018,2]
[406258203,1771666321635,-151.0,0.00018,2]
[406258204,1771666321644,-151.0,0.00018,2]
[406258205,1771666321653,-442.335122,0.00018,2]
[406258206,1771666321663,-442.335122,0.00018,2]
[406258207,1771666321672,-442.335122,0.00018,2]
[406258208,1771666321682,-442.335122,0.00018,2]
[406258209,1771666321691,-442.335122,0.00018,2]
[406258210,1771666321701,-442.335122,0.00018,2]
[406258211,1771666321710,-442.335122,0.00018,2]
[406258212,1771666321719,-442.335122,0.00018,2]
[406258213,1771666321729,-151.0,0.00018,2]
[406258214,1771666321738,-153.306817,0.00018,2]
[406258215,1771666321747,-151.0,0.00018,2]
[406258216,1771666321757,-151.0,0.00018,2]
[406258217,1771666321766,-151.0,0.00018,2]
[406258218,1771666321775,-215.596636,0.00018,2]
[406258219,1771666321784,-29799024.40144804,0.00018,2]
[406258220,1771666321793,-151.0,0.00018,2]
[406258221,1771666321802,-156.346752,0.00018,2]
[406258222,1771666321811,-151.0,0.00018,2]
[406258223,1771666321820,-151.0,0.00018,2]
[406258224,1771666321829,-263.045536,0.00018,2]
[406258225,1771666321839,-151.0,0.00018,2]
[406258226,1771666321847,-151.0,0.00018,2]
[406258227,1771666321857,-151.0,0.00018,2]
[406258228,1771666321866,-151.0,0.00018,2]
[406258229,1771666321875,-151.0,0.00018,2]
[406258230,1771666321884,-151.0,0.00018,2]
[406258231,1771666321894,-151.0,0.00018,2]
[406258232,1771666321903,-151.0,0.00018,2]
[406258233,1771666321913,-151.0,0.00018,2]
[406258234,1771666321922,-151.0,0.00018,2]
[406258235,1771666321932,-151.0,0.00018,2]
[406258236,1771666321941,-470.612915,0.00018,2]
[406258237,1771666321950,-470.612915,0.00018,2]
[406258238,1771666321959,-470.612915,0.00018,2]
[406258239,1771666321969,-470.612915,0.00018,2]
[406258240,1771666321978,-470.612915,0.00018,2]
[406258241,1771666321987,-184.098285,0.00018,2]
[406258242,1771666321996,-470.612915,0.00018,2]
[406258243,1771666322006,-470.612915,0.00018,2]
[406258244,1771666322015,-470.612915,0.00018,2]
[406258245,1771666322024,-594872.72451658,0.00018,2]
[406258246,1771666322034,-153.464312,0.00018,2]
[406258247,1771666322044,-254.909638,0.00018,2]
[406258248,1771666322053,-254.909638,0.00018,2]
[406258249,1771666322062,-254.909638,0.00018,2]
[406258250,1771666322071,-254.909638,0.00018,2]
[406258251,1771666322080,-254.909638,0.00018,2]
[406258252,1771666322089,-254.909638,0.00018,2]
[406258253,1771666322099,-254.909638,0.00018,2]
[406258254,1771666322108,-254.909638,0.00018,2]
[406258255,1771666322117,-254.909638,0.00018,2]
[406258256,1771666322126,-254.909638,0.00018,2]
[406258257,1771666322135,-254.909638,0.00018,2]
[406258258,1771666322144,-254.909638,0.00018,2]
[406258259,1771666322153,-595.396617,0.00018,2]
[406258260,1771666322163,-595.396617,0.00018,2]
[406258261,1771666322171,-595.396617,0.00018,2]
[406258262,1771666322180,-223.911213,0.00018,2]
[406258263,1771666322190,-223.911213,0.00018,2]
[406258264,1771666322199,-595.396617,0.00018,2]
[406258265,1771666322208,-223.911213,0.00018,2]
[406258266,1771666322217,-595.396617,0.00018,2]
[406258267,1771666322227,-595.396617,0.00018,2]
[406258268,1771666322236,-223.911213,0.00018,2]
[406258269,1771666322245,-223.911213,0.00018,2]
[406258270,1771666322255,-223.911213,0.00018,2]
[406258271,1771666322265,-595.396617,0.00018,2]
[406258272,1771666322274,-595.396617,0.00018,2]
[406258273,1771666322283,-595.396617,0.00018,2]
[406258274,1771666322293,-223.911213,0.00018,2]
[406258275,1771666322302,-223.911213,0.00018,2]
[406258276,1771666322312,-595.396617,0.00018,2]
[406258277,1771666322322,-595.396617,0.00018,2]
[406258278,1771666322332,-595.396617,0.00018,2]
[406258279,1771666322342,-223.911213,0.00018,2]
[406258280,1771666322351,-223.911213,0.00018,2]
[406258281,1771666322362,-223.911213,0.00018,2]
[406258282,1771666322371,-223.911213,0.00018,2]
[406258283,1771666322381,-2953.91,0.00018001,2]
[406258284,1771666322390,-1248.0,0.00018017,2]
[406258285,1771666322400,-421.0,0.00018019,2]
[406258286,1771666322409,-670.3895273,0.00018038,2]
[406258287,1771666322418,-201.70363025,0.00018078,2]
[406258288,1771666322427,-480.38,0.00018082,2]
[406258289,1771666322437,-4895.0,0.00018095,2]
[406258290,1771666322446,-300.0,0.00018119,2]
[406258291,1771666322458,-300.0,0.00018119,2]
[406258292,1771666322468,-1509.0,0.0001812,2]
[406258293,1771666322478,-152.0,0.0001812,2]
[406258294,1771666322488,-1509.0,0.0001812,2]
[406258295,1771666322498,-152.0,0.0001812,2]
[406258296,1771666322507,-1509.0,0.0001812,2]
[406258297,1771666322516,-153.0,0.0001812,2]
[406258298,1771666322526,-152.0,0.0001812,2]
[406258299,1771666322535,-153.0,0.0001812,2]
[406258300,1771666322544,-152.0,0.0001812,2]
[406258301,1771666322555,-1509.0,0.0001812,2]
[406258302,1771666322565,-153.0,0.0001812,2]
[406258303,1771666322575,-152.0,0.0001812,2]
[406258304,1771666322584,-159.0,0.0001812,2]
[406258305,1771666322593,-153.0,0.0001812,2]
[406258306,1771666322603,-1509.0,0.0001812,2]
[406258307,1771666322613,-152.0,0.0001812,2]
[406258308,1771666322623,-153.0,0.0001812,2]
[406258309,1771666322632,-1509.0,0.0001812,2]
[406258310,1771666322642,-159.0,0.0001812,2]
[406258311,1771666322652,-152.0,0.0001812,2]
[406258312,1771666322662,-165.71072875,0.0001812,2]
[406258313,1771666322672,-1509.0,0.0001812,2]
[406258314,1771666322682,-153.0,0.0001812,2]
[406258315,1771666322692,-152.0,0.0001812,2]
[406258316,1771666322702,-153.0,0.0001812,2]
[406258317,1771666322711,-1509.0,0.0001812,2]
[406258318,1771666322720,-152.0,0.0001812,2]
[406258319,1771666322730,-1509.0,0.0001812,2]
[406258320,1771666322739,-153.0,0.0001812,2]
[406258321,1771666322749,-1509.0,0.0001812,2]
[406258322,1771666322758,-153.0,0.0001812,2]
[406258323,1771666322768,-152.0,0.0001812,2]
[406258324,1771666322777,-1509.0,0.0001812,2]
[406258325,1771666322786,-153.0,0.0001812,2]
[406258326,1771666322796,-152.0,0.0001812,2]
[406258327,1771666322805,-1509.0,0.0001812,2]
[406258328,1771666322815,-153.0,0.0001812,2]
[406258329,1771666322824,-152.0,0.0001812,2]
[406258330,1771666322833,-1509.0,0.0001812,2]
[406258331,1771666322843,-153.0,0.0001812,2]
[406258332,1771666322853,-152.0,0.0001812,2]
[406258333,1771666322863,-1509.0,0.0001812,2]
[406258334,1771666322873,-153.0,0.0001812,2]
[406258335,1771666322883,-152.0,0.0001812,2]
[406258336,1771666322894,-153.0,0.0001812,2]
[406258337,1771666322904,-152.0,0.0001812,2]
[406258338,1771666322914,-1509.0,0.0001812,2]
[406258339,1771666322923,-152.0,0.0001812,2]
[406258340,1771666322933,-153.0,0.0001812,2]
[406258341,1771666322943,-1509.0,0.0001812,2]
[406258342,1771666322953,-152.0,0.0001812,2]
[406258343,1771666322963,-153.0,0.0001812,2]
[406258344,1771666322973,-1509.0,0.0001812,2]
[406258345,1771666322982,-152.0,0.0001812,2]
[406258346,1771666322991,-153.0,0.0001812,2]
[406258347,1771666323001,-1509.0,0.0001812,2]
[406258348,1771666323010,-152.0,0.0001812,2]
[406258349,1771666323019,-153.0,0.0001812,2]
[406258350,1771666323029,-1509.0,0.0001812,2]
[406258351,1771666323038,-152.0,0.0001812,2]
[406258352,1771666323048,-1509.0,0.0001812,2]
[406258353,1771666323057,-152.0,0.0001812,2]
[406258354,1771666323069,-1509.0,0.0001812,2]
[406258355,1771666323162,-153.0,0.0001812,2]
[406258356,1771666323172,-152.0,0.0001812,2]
[406258357,1771666323182,-153.0,0.0001812,2]
[406258358,1771666323191,-1509.0,0.0001812,2]
[406258359,1771666323201,-152.0,0.0001812,2]
[406258360,1771666323211,-1509.0,0.0001812,2]
[406258361,1771666323220,-153.0,0.0001812,2]
[406258362,1771666323230,-152.0,0.0001812,2]
[406258363,1771666323240,-1509.0,0.0001812,2]
[406258364,1771666323249,-153.0,0.0001812,2]
[406258365,1771666323259,-152.0,0.0001812,2]
[406258366,1771666323269,-152.0,0.0001812,2]
[406258367,1771666323279,-152.0,0.0001812,2]
[406258368,1771666323288,-152.0,0.0001812,2]
[406258369,1771666323297,-152.0,0.0001812,2]
[406258370,1771666323307,-153.0,0.0001812,2]
[406258371,1771666323317,-152.0,0.0001812,2]
[406258372,1771666323326,-153.0,0.0001812,2]
[406258373,1771666323336,-152.0,0.0001812,2]
[406258374,1771666323345,-153.0,0.0001812,2]
[406258375,1771666323354,-1509.0,0.0001812,2]
[406258376,1771666323364,-152.0,0.0001812,2]
[406258377,1771666323373,-1509.0,0.0001812,2]
[406258378,1771666323383,-153.7840295,0.0001812,2]
[406258379,1771666323393,-152.0,0.0001812,2]
[406258380,1771666323403,-1509.0,0.0001812,2]
[406258381,1771666323412,-153.0,0.0001812,2]
[406258382,1771666323422,-152.0,0.0001812,2]
[406258383,1771666323431,-1509.0,0.0001812,2]
[406258384,1771666323441,-152.0,0.0001812,2]
[406258385,1771666323453,-1509.0,0.0001812,2]
[406258386,1771666323466,-152.0,0.0001812,2]
[406258387,1771666323476,-1523.35597707,0.0001812,2]
[406258388,1771666323485,-152.0,0.0001812,2]
[406258389,1771666323494,-152.0,0.0001812,2]
[406258390,1771666323504,-153.26740475,0.0001812,2]
[406258391,1771666323514,-152.0,0.0001812,2]
[406258392,1771666323523,-300.0,0.00018125,2]
[406258393,1771666323532,-300.0,0.00018125,2]
[406258394,1771666323541,-184.17,0.00018165,2]